[Event "*** Monthly 3|2 Blitz Masters"]
[Site "Chess.com"]
[Date "2014.10.28"]
[Round "9"]
[White "David_Klein"]
[Black "oggy1984"]
[Result "1-0"]
[WhiteElo "2360"]
[BlackElo "2231"]
[TimeControl "180+2"]
[EndTime "13:36:59 PDT"]
[Termination "David_Klein won by resignation"]

1. e4 {[%clk 0:03:00]} 1... c5 {[%clk 0:01:18.9]} 2. Nf3 {[%clk 0:02:58.3]} 2...
e6 {[%clk 0:01:20.2]} 3. g3 {[%clk 0:02:59.1]} 3... d5 {[%clk 0:01:20.8]} 4.
exd5 {[%clk 0:02:59.7]} 4... exd5 {[%clk 0:01:22.7]} 5. d4 {[%clk 0:03:00.8]}
5... Nc6 {[%clk 0:01:20.9]} 6. Bg2 {[%clk 0:03:02]} 6... Qe7+ {[%clk 0:01:18.3]}
7. Be3 {[%clk 0:03:02.5]} 7... cxd4 {[%clk 0:01:18.4]} 8. Nxd4 {[%clk
0:03:03.5]} 8... Nf6 {[%clk 0:01:17.1]} 9. O-O {[%clk 0:03:03.4]} 9... Bg4
{[%clk 0:01:14.8]} 10. Qd3 {[%clk 0:03:00.9]} 10... O-O-O {[%clk 0:00:59.2]} 11.
Nc3 {[%clk 0:02:49.8]} 11... Qd7 {[%clk 0:00:45.7]} 12. Ncb5 {[%clk 0:02:42.2]}
12... a6 {[%clk 0:00:36.4]} 13. Nxc6 {[%clk 0:02:42]} 13... bxc6 {[%clk
0:00:34.1]} 14. Nd4 {[%clk 0:02:34]} 14... Qb7 {[%clk 0:00:19.3]} 15. h3 {[%clk
0:02:34.4]} 15... Bd7 {[%clk 0:00:18.6]} 16. b4 {[%clk 0:02:34.6]} 16... Bd6
{[%clk 0:00:17.4]} 17. Rab1 {[%clk 0:02:34.1]} 17... Rhe8 {[%clk 0:00:16.1]} 18.
a4 {[%clk 0:02:35.2]} 18... Ne4 {[%clk 0:00:15.6]} 19. b5 {[%clk 0:02:35.9]}
19... axb5 {[%clk 0:00:15.2]} 20. axb5 {[%clk 0:02:37.1]} 20... c5 {[%clk
0:00:16.3]} 21. Nc6 {[%clk 0:02:38.4]} 21... Bxc6 {[%clk 0:00:15.6]} 22. bxc6
{[%clk 0:02:39.4]} 22... Qxc6 {[%clk 0:00:17.2]} 23. c4 {[%clk 0:02:39.3]} 23...
f5 {[%clk 0:00:09.6]} 24. cxd5 {[%clk 0:02:39.3]} 24... Qa8 {[%clk 0:00:07]} 25.
Ra1 {[%clk 0:02:39.6]} 25... Qb7 {[%clk 0:00:06.3]} 26. Rfb1 {[%clk 0:02:40.4]}
26... Qc7 {[%clk 0:00:04.9]} 27. Qa6+ {[%clk 0:02:41]} 27... Kd7 {[%clk
0:00:06]} 28. Rb7 {[%clk 0:02:42.6]} 28... Nxg3 {[%clk 0:00:02.7]} 29. Qc6+
{[%clk 0:02:41]} 1-0

[Event "*** Monthly 3|2 Blitz Masters"]
[Site "Chess.com"]
[Date "2014.10.28"]
[Round "9"]
[White "gumersindo"]
[Black "jbj"]
[Result "0-1"]
[WhiteElo "2152"]
[BlackElo "2309"]
[TimeControl "180+2"]
[EndTime "13:37:09 PDT"]
[Termination "jbj won by resignation"]

1. d4 {[%clk 0:03:00]} 1... Nf6 {[%clk 0:02:58.3]} 2. c4 {[%clk 0:03:00.5]} 2...
e6 {[%clk 0:02:59.3]} 3. Nc3 {[%clk 0:03:00.5]} 3... Bb4 {[%clk 0:02:59.3]} 4.
Qc2 {[%clk 0:03:01.8]} 4... d5 {[%clk 0:02:59.8]} 5. e3 {[%clk 0:02:59.9]} 5...
O-O {[%clk 0:02:56.4]} 6. Nf3 {[%clk 0:03:00.8]} 6... dxc4 {[%clk 0:02:56.8]} 7.
Bxc4 {[%clk 0:03:01.3]} 7... c5 {[%clk 0:02:57.9]} 8. dxc5 {[%clk 0:03:01.1]}
8... Bxc5 {[%clk 0:02:58.8]} 9. O-O {[%clk 0:03:01.8]} 9... Nc6 {[%clk
0:02:56.9]} 10. a3 {[%clk 0:03:01.7]} 10... b6 {[%clk 0:02:53.2]} 11. b4 {[%clk
0:03:01.6]} 11... Be7 {[%clk 0:02:52.8]} 12. Bb2 {[%clk 0:03:00.3]} 12... Bb7
{[%clk 0:02:53.5]} 13. Rfd1 {[%clk 0:03:00.7]} 13... Qc8 {[%clk 0:02:54.5]} 14.
Nb5 {[%clk 0:02:56]} 14... Rd8 {[%clk 0:02:51.5]} 15. Rxd8+ {[%clk 0:02:54.4]}
15... Qxd8 {[%clk 0:02:53.4]} 16. Rd1 {[%clk 0:02:54.8]} 16... Qc8 {[%clk
0:02:54.4]} 17. Nd6 {[%clk 0:02:46.2]} 17... Bxd6 {[%clk 0:02:54]} 18. Rxd6
{[%clk 0:02:46.4]} 18... Ne7 {[%clk 0:02:44.9]} 19. Bxf6 {[%clk 0:02:17.8]}
19... gxf6 {[%clk 0:02:46.8]} 20. Qd3 {[%clk 0:02:12.7]} 20... Nf5 {[%clk
0:02:36.7]} 21. Rd7 {[%clk 0:01:55.5]} 21... Bc6 {[%clk 0:02:31.8]} 22. Rxf7
{[%clk 0:01:46.7]} 22... Kxf7 {[%clk 0:02:15.6]} 23. Qxf5 {[%clk 0:01:46.6]}
23... Bxf3 {[%clk 0:02:11.8]} 24. Qxh7+ {[%clk 0:01:45.2]} 24... Kf8 {[%clk
0:02:12.6]} 25. Qh8+ {[%clk 0:01:37.2]} 25... Ke7 {[%clk 0:02:12.8]} 26. Qg7+
{[%clk 0:01:31.7]} 26... Kd6 {[%clk 0:02:12.1]} 27. Qg3+ {[%clk 0:01:26.6]}
27... e5 {[%clk 0:02:08.4]} 28. Qxf3 {[%clk 0:01:23.1]} 28... Qxc4 {[%clk
0:02:07.4]} 29. Qxf6+ {[%clk 0:01:24.2]} 29... Qe6 {[%clk 0:02:06.6]} 30. Qf3
{[%clk 0:01:22.7]} 30... Rc8 {[%clk 0:02:05.5]} 31. h3 {[%clk 0:01:20.2]} 31...
Rc1+ {[%clk 0:02:01.2]} 32. Kh2 {[%clk 0:01:20.7]} 32... e4 {[%clk 0:01:50.4]}
33. Qf8+ {[%clk 0:01:20.9]} 33... Qe7 {[%clk 0:01:46.9]} 34. Qh6+ {[%clk
0:01:15.7]} 34... Kd5 {[%clk 0:01:45]} 35. Qg5+ {[%clk 0:01:13.1]} 35... Qxg5
{[%clk 0:01:42.7]} 0-1

[Event "*** Monthly 3|2 Blitz Masters"]
[Site "Chess.com"]
[Date "2014.10.28"]
[Round "9"]
[White "GMHess"]
[Black "lorcho"]
[Result "1-0"]
[WhiteElo "2452"]
[BlackElo "2419"]
[TimeControl "180+2"]
[EndTime "13:40:30 PDT"]
[Termination "GMHess won by resignation"]

1. d4 {[%clk 0:03:00]} 1... e6 {[%clk 0:02:57.2]} 2. e4 {[%clk 0:02:59.7]} 2...
d5 {[%clk 0:02:58.3]} 3. Nc3 {[%clk 0:03:00.5]} 3... Nf6 {[%clk 0:02:59.9]} 4.
Bg5 {[%clk 0:03:00.8]} 4... Be7 {[%clk 0:03:00.7]} 5. e5 {[%clk 0:02:55.1]} 5...
Nfd7 {[%clk 0:03:00.9]} 6. h4 {[%clk 0:02:52.5]} 6... c5 {[%clk 0:02:57.6]} 7.
Nb5 {[%clk 0:02:45.3]} 7... O-O {[%clk 0:02:56.6]} 8. Bxe7 {[%clk 0:02:31.6]}
8... Qxe7 {[%clk 0:02:58.5]} 9. Nc7 {[%clk 0:02:32.7]} 9... cxd4 {[%clk
0:02:59.3]} 10. Nxa8 {[%clk 0:02:31.2]} 10... f6 {[%clk 0:03:00.8]} 11. Qd2
{[%clk 0:02:27.6]} 11... fxe5 {[%clk 0:02:58.3]} 12. O-O-O {[%clk 0:02:23.7]}
12... Nc5 {[%clk 0:02:56.6]} 13. Nf3 {[%clk 0:02:18.6]} 13... Ne4 {[%clk
0:02:54.6]} 14. Qe1 {[%clk 0:02:18]} 14... Nc6 {[%clk 0:02:48.7]} 15. Bd3 {[%clk
0:02:03.2]} 15... Rf4 {[%clk 0:02:48]} 16. Bxe4 {[%clk 0:01:25.6]} 16... dxe4
{[%clk 0:02:30.8]} 17. Nxe5 {[%clk 0:01:25.1]} 17... Nxe5 {[%clk 0:02:25.8]} 18.
Rxd4 {[%clk 0:01:15.1]} 18... Qc5 {[%clk 0:02:10.9]} 19. Rd8+ {[%clk 0:00:56.4]}
19... Kf7 {[%clk 0:02:10.7]} 20. Qe3 {[%clk 0:00:42.4]} 20... Qxe3+ {[%clk
0:01:10.9]} 21. fxe3 {[%clk 0:00:41.6]} 21... Rf2 {[%clk 0:01:11.6]} 22. Rxc8
{[%clk 0:00:41]} 22... Ng4 {[%clk 0:01:13.2]} 23. Re1 {[%clk 0:00:33.4]} 23...
Rxg2 {[%clk 0:01:13.5]} 24. Rc7+ {[%clk 0:00:34.6]} 24... Kf6 {[%clk 0:01:14.1]}
25. Rxb7 {[%clk 0:00:33.9]} 25... h5 {[%clk 0:01:15.3]} 26. Nc7 {[%clk 0:00:35]}
26... g6 {[%clk 0:01:05.5]} 27. Ne8+ {[%clk 0:00:33.2]} 27... Kf5 {[%clk
0:01:05.6]} 28. Rb5+ {[%clk 0:00:33]} 28... e5 {[%clk 0:01:06.2]} 29. Nd6+
{[%clk 0:00:34.2]} 29... Ke6 {[%clk 0:01:06]} 30. Nxe4 {[%clk 0:00:35.9]} 30...
Kf5 {[%clk 0:01:07.6]} 31. Ng5 {[%clk 0:00:36.8]} 31... Nf2 {[%clk 0:01:02.3]}
32. Rb4 {[%clk 0:00:30]} 32... Rg4 {[%clk 0:00:54.4]} 33. e4+ {[%clk 0:00:22.9]}
33... Kf4 {[%clk 0:00:51.8]} 34. Ne6+ {[%clk 0:00:19.7]} 34... Kf3 {[%clk
0:00:48.8]} 35. Rb3+ {[%clk 0:00:17.8]} 35... Kg2 {[%clk 0:00:49.1]} 36. Nc5
{[%clk 0:00:12]} 36... Rxh4 {[%clk 0:00:48.2]} 37. Nd3 {[%clk 0:00:13.6]} 37...
Ng4 {[%clk 0:00:29.4]} 38. Re2+ {[%clk 0:00:13]} 38... Kf1 {[%clk 0:00:25.2]}
39. Kd2 {[%clk 0:00:13.8]} 39... g5 {[%clk 0:00:21.6]} 40. Ra3 {[%clk
0:00:08.4]} 40... Nf6 {[%clk 0:00:22.6]} 41. Rf2+ {[%clk 0:00:03.8]} 41... Kg1
{[%clk 0:00:23.5]} 42. Rxf6 {[%clk 0:00:05.7]} 42... g4 {[%clk 0:00:25.1]} 43.
Nxe5 {[%clk 0:00:06.7]} 43... Rh2+ {[%clk 0:00:25.8]} 44. Ke3 {[%clk 0:00:07.5]}
44... Kg2 {[%clk 0:00:27.7]} 45. Ng6 {[%clk 0:00:08.4]} 45... g3 {[%clk
0:00:28.6]} 46. Nf4+ {[%clk 0:00:09.8]} 46... Kh1 {[%clk 0:00:30.1]} 47. Ne2
{[%clk 0:00:10.9]} 47... g2 {[%clk 0:00:30.5]} 48. Rd3 {[%clk 0:00:09.3]} 48...
Rh3+ {[%clk 0:00:28.6]} 49. Rf3 {[%clk 0:00:10.4]} 1-0

[Event "*** Monthly 3|2 Blitz Masters"]
[Site "Chess.com"]
[Date "2014.10.28"]
[Round "9"]
[White "MichiganEagle"]
[Black "alexsuper1987"]
[Result "1-0"]
[WhiteElo "2280"]
[BlackElo "2050"]
[TimeControl "180+2"]
[EndTime "13:41:10 PDT"]
[Termination "MichiganEagle won by resignation"]

1. d4 {[%clk 0:03:00]} 1... Nf6 {[%clk 0:02:57.2]} 2. Nf3 {[%clk 0:03:01.6]}
2... c5 {[%clk 0:02:58]} 3. d5 {[%clk 0:03:01.6]} 3... e6 {[%clk 0:02:59.2]} 4.
Nc3 {[%clk 0:03:03.2]} 4... exd5 {[%clk 0:02:52.5]} 5. Nxd5 {[%clk 0:03:05.1]}
5... Nxd5 {[%clk 0:02:51.8]} 6. Qxd5 {[%clk 0:03:07]} 6... Nc6 {[%clk
0:02:53.1]} 7. Bg5 {[%clk 0:02:58.2]} 7... Be7 {[%clk 0:02:47.5]} 8. O-O-O
{[%clk 0:02:57.1]} 8... O-O {[%clk 0:02:42.8]} 9. Bxe7 {[%clk 0:02:49.4]} 9...
Qxe7 {[%clk 0:02:43]} 10. Qd6 {[%clk 0:02:50.8]} 10... Re8 {[%clk 0:02:35]} 11.
e3 {[%clk 0:02:49.5]} 11... Nb4 {[%clk 0:01:58.2]} 12. a3 {[%clk 0:02:36.9]}
12... Nc6 {[%clk 0:01:32.5]} 13. Bb5 {[%clk 0:02:36.4]} 13... Qxd6 {[%clk
0:01:25.9]} 14. Rxd6 {[%clk 0:02:37.4]} 14... Re6 {[%clk 0:01:27.2]} 15. Rhd1
{[%clk 0:02:37.3]} 15... Rxd6 {[%clk 0:01:28.2]} 16. Rxd6 {[%clk 0:02:38.7]}
16... Kf8 {[%clk 0:01:29]} 17. Rd5 {[%clk 0:02:24.3]} 17... b6 {[%clk
0:01:28.1]} 18. Ng5 {[%clk 0:01:51.1]} 18... h6 {[%clk 0:01:27.1]} 19. Ne4
{[%clk 0:01:50.1]} 19... a6 {[%clk 0:01:23.1]} 20. Bxc6 {[%clk 0:01:47.4]} 20...
dxc6 {[%clk 0:01:23.8]} 21. Rd8+ {[%clk 0:01:46.4]} 21... Ke7 {[%clk 0:01:24.4]}
22. Rg8 {[%clk 0:01:47.9]} 22... g6 {[%clk 0:01:00.9]} 23. Rh8 {[%clk
0:01:48.8]} 23... h5 {[%clk 0:01:02.1]} 24. h4 {[%clk 0:01:49.4]} 24... Bb7
{[%clk 0:01:02.6]} 25. Rxa8 {[%clk 0:01:47.2]} 25... Bxa8 {[%clk 0:01:04.5]} 26.
Kd2 {[%clk 0:01:42.3]} 26... Bb7 {[%clk 0:01:05.5]} 27. Nc3 {[%clk 0:01:32.8]}
27... Bc8 {[%clk 0:01:05.7]} 28. Na4 {[%clk 0:01:33.6]} 28... b5 {[%clk
0:00:37.9]} 29. Nxc5 {[%clk 0:01:34.6]} 29... Kd6 {[%clk 0:00:39.2]} 30. b4
{[%clk 0:01:36.1]} 30... a5 {[%clk 0:00:39.2]} 31. e4 {[%clk 0:01:30]} 31...
axb4 {[%clk 0:00:39.9]} 32. axb4 {[%clk 0:01:31.9]} 32... f5 {[%clk 0:00:35.2]}
33. exf5 {[%clk 0:01:20.4]} 33... Bxf5 {[%clk 0:00:36.2]} 34. c3 {[%clk
0:01:21.8]} 34... Kd5 {[%clk 0:00:31.7]} 35. Nb3 {[%clk 0:01:20.6]} 35... Be4
{[%clk 0:00:27.6]} 36. f3 {[%clk 0:01:17.2]} 36... Bb1 {[%clk 0:00:26.6]} 37.
Nc5 {[%clk 0:01:11.5]} 37... Kc4 {[%clk 0:00:25.1]} 38. Nd7 {[%clk 0:01:11.3]}
38... Bf5 {[%clk 0:00:20]} 39. Ne5+ {[%clk 0:00:59.4]} 39... Kd5 {[%clk
0:00:21.1]} 40. Nf7 {[%clk 0:00:58.3]} 40... c5 {[%clk 0:00:19.3]} 41. bxc5
{[%clk 0:00:51.1]} 41... Kxc5 {[%clk 0:00:20.3]} 42. Ng5 {[%clk 0:00:47.5]}
42... b4 {[%clk 0:00:17]} 43. cxb4+ {[%clk 0:00:47.3]} 43... Kxb4 {[%clk
0:00:18.9]} 44. Ke3 {[%clk 0:00:48.7]} 44... Kc5 {[%clk 0:00:19]} 45. Kf4 {[%clk
0:00:49.3]} 45... Kd5 {[%clk 0:00:18.2]} 46. g3 {[%clk 0:00:46.8]} 46... Bb1
{[%clk 0:00:16.7]} 47. Ne4 {[%clk 0:00:47.2]} 47... Ke6 {[%clk 0:00:15]} 48. Kg5
{[%clk 0:00:47.6]} 48... Kf7 {[%clk 0:00:14]} 49. Nc5 {[%clk 0:00:45.8]} 49...
Bc2 {[%clk 0:00:13.1]} 50. Nd7 {[%clk 0:00:45.3]} 50... Kg7 {[%clk 0:00:11.7]}
51. Ne5 {[%clk 0:00:46]} 51... Bb1 {[%clk 0:00:10.4]} 52. Nc4 {[%clk 0:00:45.5]}
52... Bd3 {[%clk 0:00:08.3]} 53. Ne3 {[%clk 0:00:46.6]} 53... Be2 {[%clk
0:00:08.1]} 54. f4 {[%clk 0:00:47.5]} 54... Bd3 {[%clk 0:00:08.6]} 55. f5 {[%clk
0:00:48.2]} 55... Bxf5 {[%clk 0:00:06.2]} 56. Nxf5+ {[%clk 0:00:48.6]} 56...
gxf5 {[%clk 0:00:07.3]} 57. Kxf5 {[%clk 0:00:49.5]} 57... Kh6 {[%clk 0:00:08.6]}
58. Kf6 {[%clk 0:00:50.4]} 58... Kh7 {[%clk 0:00:09.1]} 59. Kg5 {[%clk
0:00:52.3]} 1-0

[Event "*** Monthly 3|2 Blitz Masters"]
[Site "Chess.com"]
[Date "2014.10.28"]
[Round "9"]
[White "GMNeiksans"]
[Black "jcibarra"]
[Result "1-0"]
[WhiteElo "2519"]
[BlackElo "2462"]
[TimeControl "180+2"]
[EndTime "13:41:47 PDT"]
[Termination "GMNeiksans won by resignation"]

1. Nf3 {[%clk 0:03:00]} 1... Nf6 {[%clk 0:02:58.5]} 2. g3 {[%clk 0:03:00.3]}
2... g6 {[%clk 0:02:59.5]} 3. Bg2 {[%clk 0:03:01.5]} 3... Bg7 {[%clk 0:02:59.6]}
4. O-O {[%clk 0:03:02.5]} 4... O-O {[%clk 0:03:01.1]} 5. c4 {[%clk 0:03:03.6]}
5... d6 {[%clk 0:03:02.3]} 6. Nc3 {[%clk 0:03:02.8]} 6... Nc6 {[%clk 0:03:03]}
7. d3 {[%clk 0:03:03.3]} 7... e5 {[%clk 0:03:02.8]} 8. Rb1 {[%clk 0:03:02.8]}
8... a5 {[%clk 0:03:03]} 9. a3 {[%clk 0:03:04.1]} 9... Re8 {[%clk 0:03:04.3]}
10. Nd2 {[%clk 0:03:00.6]} 10... Nd4 {[%clk 0:03:03.3]} 11. e3 {[%clk
0:02:58.3]} 11... Ne6 {[%clk 0:02:58.8]} 12. Nde4 {[%clk 0:02:23.6]} 12... Nxe4
{[%clk 0:02:45.8]} 13. dxe4 {[%clk 0:02:11.1]} 13... h5 {[%clk 0:02:28.9]} 14.
f4 {[%clk 0:02:06.5]} 14... exf4 {[%clk 0:02:25.4]} 15. exf4 {[%clk 0:02:02.5]}
15... Nc5 {[%clk 0:02:23.7]} 16. Qc2 {[%clk 0:01:50.6]} 16... h4 {[%clk
0:02:22.5]} 17. Be3 {[%clk 0:01:44.8]} 17... hxg3 {[%clk 0:02:22.5]} 18. hxg3
{[%clk 0:01:44.9]} 18... Bg4 {[%clk 0:02:21.4]} 19. Bxc5 {[%clk 0:01:34.9]}
19... dxc5 {[%clk 0:02:22]} 20. e5 {[%clk 0:01:36.4]} 20... Qd4+ {[%clk
0:02:10.8]} 21. Qf2 {[%clk 0:01:33.9]} 21... c6 {[%clk 0:02:02.9]} 22. Ne4
{[%clk 0:01:29.6]} 22... Rad8 {[%clk 0:01:30.6]} 23. Nxc5 {[%clk 0:01:29.4]}
23... Qxc4 {[%clk 0:00:54.7]} 24. Nxb7 {[%clk 0:01:26.5]} 24... Rd3 {[%clk
0:00:52.9]} 25. Rbc1 {[%clk 0:01:20.8]} 25... Qa2 {[%clk 0:00:42.5]} 26. Nc5
{[%clk 0:01:04.3]} 26... Rdd8 {[%clk 0:00:31]} 27. Bxc6 {[%clk 0:00:37.1]} 27...
Re7 {[%clk 0:00:32.3]} 28. Bb5 {[%clk 0:00:36.5]} 28... Rb8 {[%clk 0:00:20.8]}
29. a4 {[%clk 0:00:34.4]} 29... Qd5 {[%clk 0:00:16.8]} 30. Bc4 {[%clk
0:00:29.7]} 30... Qd8 {[%clk 0:00:11.2]} 31. b3 {[%clk 0:00:28.5]} 31... Rc7
{[%clk 0:00:11.6]} 32. Ne4 {[%clk 0:00:28.8]} 32... Qe7 {[%clk 0:00:10.1]} 33.
Rc2 {[%clk 0:00:24.6]} 33... Rd8 {[%clk 0:00:10.4]} 34. Rd2 {[%clk 0:00:22.8]}
34... Rxd2 {[%clk 0:00:10.1]} 35. Qxd2 {[%clk 0:00:23.2]} 35... Rd7 {[%clk
0:00:11.7]} 36. Nd6 {[%clk 0:00:24.3]} 36... Bxe5 {[%clk 0:00:09.6]} 37. fxe5
{[%clk 0:00:20.9]} 37... Qxe5 {[%clk 0:00:11.5]} 38. Qf4 {[%clk 0:00:19.7]}
38... Qxf4 {[%clk 0:00:08.2]} 39. Rxf4 {[%clk 0:00:20.4]} 39... Rxd6 {[%clk
0:00:09.7]} 40. Rxg4 {[%clk 0:00:21.5]} 40... Kg7 {[%clk 0:00:11.3]} 41. Kf2
{[%clk 0:00:21.6]} 41... f5 {[%clk 0:00:12.8]} 42. Rh4 {[%clk 0:00:22.7]} 42...
Kf6 {[%clk 0:00:14.7]} 43. Ke3 {[%clk 0:00:23.5]} 43... Ke5 {[%clk 0:00:15.2]}
44. Rh8 {[%clk 0:00:23.2]} 44... Rd1 {[%clk 0:00:16.6]} 45. Re8+ {[%clk
0:00:23.9]} 45... Kf6 {[%clk 0:00:18]} 46. Ra8 {[%clk 0:00:24.7]} 46... Re1+
{[%clk 0:00:18.4]} 47. Kf2 {[%clk 0:00:25.6]} 47... Re5 {[%clk 0:00:19.1]} 48.
Bb5 {[%clk 0:00:27.1]} 48... g5 {[%clk 0:00:19.1]} 49. Rxa5 {[%clk 0:00:27.8]}
49... g4 {[%clk 0:00:20.3]} 50. Ra8 {[%clk 0:00:27.6]} 50... Rc5 {[%clk
0:00:21.5]} 51. Re8 {[%clk 0:00:24.3]} 51... Rc3 {[%clk 0:00:21.5]} 52. Re2
{[%clk 0:00:25.1]} 52... Rxb3 {[%clk 0:00:21.5]} 53. Ra2 {[%clk 0:00:26.1]}
53... Ke5 {[%clk 0:00:19.7]} 54. Be2 {[%clk 0:00:25.3]} 54... f4 {[%clk
0:00:21]} 55. gxf4+ {[%clk 0:00:26.7]} 55... Kxf4 {[%clk 0:00:22.9]} 56. a5
{[%clk 0:00:28.3]} 56... Rh3 {[%clk 0:00:21.6]} 57. Bf1 {[%clk 0:00:23.4]} 57...
Rh2+ {[%clk 0:00:20.5]} 58. Bg2 {[%clk 0:00:24.3]} 58... Rh7 {[%clk 0:00:13.2]}
59. a6 {[%clk 0:00:24.9]} 59... g3+ {[%clk 0:00:14.6]} 60. Kf1 {[%clk
0:00:24.9]} 60... Rc7 {[%clk 0:00:14.4]} 61. Ra1 {[%clk 0:00:20.5]} 61... Ra7
{[%clk 0:00:13.4]} 62. Bb7 {[%clk 0:00:20.8]} 62... Ke3 {[%clk 0:00:14.3]} 63.
Kg2 {[%clk 0:00:21.9]} 63... Rxa6 {[%clk 0:00:16.2]} 64. Bxa6 {[%clk 0:00:22.4]}
1-0

[Event "*** Monthly 3|2 Blitz Masters"]
[Site "Chess.com"]
[Date "2014.10.28"]
[Round "9"]
[White "Trendle"]
[Black "XeresLt"]
[Result "1-0"]
[WhiteElo "2217"]
[BlackElo "2257"]
[TimeControl "180+2"]
[EndTime "13:41:54 PDT"]
[Termination "Trendle won by resignation"]

1. e3 {[%clk 0:03:00]} 1... Nf6 {[%clk 0:02:58.8]} 2. e4 {[%clk 0:03:01.9]} 2...
Nxe4 {[%clk 0:02:59]} 3. d4 {[%clk 0:02:59.2]} 3... d5 {[%clk 0:02:59.1]} 4. Nf3
{[%clk 0:02:52.4]} 4... c6 {[%clk 0:02:56.6]} 5. Bd3 {[%clk 0:02:51.2]} 5... Bf5
{[%clk 0:02:56.7]} 6. Nh4 {[%clk 0:02:47.2]} 6... Bg6 {[%clk 0:02:52.3]} 7. Nxg6
{[%clk 0:02:47.4]} 7... hxg6 {[%clk 0:02:52.4]} 8. Qf3 {[%clk 0:02:48]} 8... Nd6
{[%clk 0:02:50]} 9. Nc3 {[%clk 0:02:43.3]} 9... e6 {[%clk 0:02:48.6]} 10. Ne2
{[%clk 0:02:36.5]} 10... Nd7 {[%clk 0:02:47]} 11. Bf4 {[%clk 0:02:31.9]} 11...
Be7 {[%clk 0:02:37.9]} 12. O-O-O {[%clk 0:02:31]} 12... Qa5 {[%clk 0:02:37.3]}
13. Kb1 {[%clk 0:02:31.4]} 13... Nc4 {[%clk 0:02:27.4]} 14. h4 {[%clk 0:02:22]}
14... Ndb6 {[%clk 0:02:17]} 15. Bc1 {[%clk 0:02:19.9]} 15... Bf6 {[%clk
0:01:57.5]} 16. g4 {[%clk 0:02:15.8]} 16... Na4 {[%clk 0:01:22.8]} 17. b3 {[%clk
0:01:49]} 17... Nc3+ {[%clk 0:01:23.1]} 18. Nxc3 {[%clk 0:01:49.5]} 18... Qxc3
{[%clk 0:01:24.2]} 19. Be2 {[%clk 0:01:34.2]} 19... Qxf3 {[%clk 0:01:22.1]} 20.
Bxf3 {[%clk 0:01:35.6]} 20... Nd6 {[%clk 0:01:21.6]} 21. c3 {[%clk 0:01:17.4]}
21... Kd7 {[%clk 0:01:22.2]} 22. g5 {[%clk 0:01:15.6]} 22... Be7 {[%clk
0:01:22.9]} 23. Kc2 {[%clk 0:01:16.3]} 23... Nf5 {[%clk 0:01:23.7]} 24. h5
{[%clk 0:01:17]} 24... gxh5 {[%clk 0:01:24.5]} 25. Bxh5 {[%clk 0:01:18.3]} 25...
g6 {[%clk 0:01:23.9]} 26. Bg4 {[%clk 0:01:19.6]} 26... b6 {[%clk 0:01:18.1]} 27.
Bf4 {[%clk 0:01:20.5]} 27... Bd6 {[%clk 0:01:17.8]} 28. Bd2 {[%clk 0:01:21.6]}
28... c5 {[%clk 0:01:09.9]} 29. dxc5 {[%clk 0:01:22.9]} 29... Bxc5 {[%clk
0:01:07]} 30. c4 {[%clk 0:01:15.1]} 30... Rxh1 {[%clk 0:00:53.6]} 31. Rxh1
{[%clk 0:01:15.6]} 31... dxc4 {[%clk 0:00:54.9]} 32. bxc4 {[%clk 0:01:11.8]}
32... Bxf2 {[%clk 0:00:55.7]} 33. Rf1 {[%clk 0:01:00.7]} 33... Bd4 {[%clk
0:00:51.6]} 34. Kd3 {[%clk 0:00:55.7]} 34... Bg7 {[%clk 0:00:45.4]} 35. Bb4
{[%clk 0:00:52]} 35... Rd8 {[%clk 0:00:42.6]} 36. Bxf5 {[%clk 0:00:36]} 36...
Kc6+ {[%clk 0:00:42.1]} 37. Ke3 {[%clk 0:00:33.2]} 37... gxf5 {[%clk 0:00:40.7]}
38. Rh1 {[%clk 0:00:34.6]} 38... Bd4+ {[%clk 0:00:37]} 39. Kf4 {[%clk
0:00:33.8]} 39... Rh8 {[%clk 0:00:36.7]} 40. Rd1 {[%clk 0:00:33.9]} 40... Rh4+
{[%clk 0:00:35.7]} 41. Kf3 {[%clk 0:00:35.2]} 41... e5 {[%clk 0:00:35.9]} 42.
Be7 {[%clk 0:00:35.7]} 42... Rf4+ {[%clk 0:00:24.4]} 43. Kg3 {[%clk 0:00:32.2]}
43... Rg4+ {[%clk 0:00:22.8]} 44. Kh3 {[%clk 0:00:32.4]} 44... Rg1 {[%clk
0:00:17.8]} 45. Rd2 {[%clk 0:00:29.6]} 45... f4 {[%clk 0:00:16.5]} 46. Kh2
{[%clk 0:00:23.1]} 46... Rg3 {[%clk 0:00:16.3]} 47. Bf6 {[%clk 0:00:23.4]} 47...
Kc5 {[%clk 0:00:16.5]} 48. Re2 {[%clk 0:00:24.4]} 48... Kxc4 {[%clk 0:00:17.2]}
49. Bxe5 {[%clk 0:00:25]} 49... Rxg5 {[%clk 0:00:16.3]} 50. Bxf4 {[%clk
0:00:25.8]} 50... Rg4 {[%clk 0:00:14.4]} 51. Bg3 {[%clk 0:00:23.9]} 51... f5
{[%clk 0:00:15]} 52. Kh3 {[%clk 0:00:23.3]} 52... a5 {[%clk 0:00:15.3]} 53. Rc2+
{[%clk 0:00:23]} 53... Kd3 {[%clk 0:00:16.3]} 54. Rc6 {[%clk 0:00:22.3]} 54...
Rg8 {[%clk 0:00:11.2]} 55. Bc7 {[%clk 0:00:23.4]} 55... Rc8 {[%clk 0:00:06.2]}
56. Rc1 {[%clk 0:00:22.8]} 56... Kd2 {[%clk 0:00:05.2]} 57. Bf4+ {[%clk
0:00:20.5]} 57... Be3 {[%clk 0:00:04.1]} 58. Bxe3+ {[%clk 0:00:21.6]} 58... Kxe3
{[%clk 0:00:05.5]} 59. Rxc8 {[%clk 0:00:23.2]} 59... f4 {[%clk 0:00:06.8]} 60.
Kg2 {[%clk 0:00:24.6]} 1-0